[Event "11th LCC FIDE Open 2019"]
[Site "London"]
[Date "2019.12.05"]
[Round "8.52"]
[White "Taylor, William J"]
[Black "Covey, Jason"]
[Result "0-1"]
[ECO "C06"]
[WhiteElo "1967"]
[BlackElo "1770"]
[Annotator "NA"]
[PlyCount "66"]
[EventDate "2019.11.29"]
[EventType "swiss"]
[EventCountry "ENG"]
[SourceTitle "playchess.com"]
[Source "ChessBase"]
[SourceQuality "1"]
[TimeControl "40/5400+30:1800+30"]

1. e4 {[%emt 1:08:59]} e6 {[%emt 0:00:32]} 2. d4 {[%emt 0:00:08]} d5 {[%emt 0:00:08]} 3. Nd2 {[%emt 0:00:06]} Nf6 {[%emt 0:00:15]} 4. e5 {[%emt 0:00:08]} Nfd7 {[%emt 0:00:12]} 5. Bd3 {[%emt 0:00:11]} c5 {[%emt 0:00:19]} 6. c3 {[%emt 0:00:06]} Nc6 {[%emt 0:00:23]} 7. Ne2 {[%emt 0:00:12]} cxd4 {[%emt 0:00:22]} 8. cxd4 {[%emt 0:00:07]} f6 {[%emt 0:00:24]} 9. exf6 {[%emt 0:00:10]} Nxf6 {[%emt 0:00:17]} 10. Nf3 {[%emt 0:00:10]} Bd6 {[%emt 0:00:32]} 11. O-O {[%emt 0:00:12]} Qc7 {[%emt 0:00:20]} 12. h3 {[%emt 0:00:08]} O-O {[%emt 0:00:31]} 13. Be3 {[%emt 0:00:08]} Bd7 {[%emt 0:00:30]} 14. Re1 {[%emt 0:00:09]} Rac8 {[%emt 0:00:56]} 15. Rc1 {[%emt 0:00:45]} Be8 {[%emt 0:07:48]} 16. Ng5 {[%emt 0:04:54]} Qd7 {[%emt 0:01:38]} 17. Bf4 {[%emt 0:22:49]} Bh5 {[%emt 0:04:19]} 18. Bxd6 {[%emt 0:09:01]} Qxd6 {[%emt 0:00:04]} 19. Qc2 {[%emt 0:00:11]} h6 {[%emt 0:02:45]} 20. Nh7 {[%emt 0:00:28]} Nxh7 {[%emt 0:00:56]} 21. Bxh7+ {[%emt 0:00:10]} Kh8 {[%emt 0:00:05]} 22. g4 {[%emt 0:17:16]} Nxd4 {[%emt 0:04:40]} 23. Nxd4 {[%emt 0:07:34]} Rxc2 {[%emt 0:00:42]} 24. Bxc2 {[%emt 0:00:12]} Qf4 {[%emt 0:04:42]} 25. Nxe6 {[%emt 0:02:28]} Qxf2+ {[%emt 0:00:04]} 26. Kh1 {[%emt 0:00:09]} Rf3 {[%emt 0:00:52]} 27. Nf4 {[%emt 0:00:57]} Rxf4 {[%emt 0:00:04]} 28. gxh5 {[%emt 0:00:06]} Qf3+ {[%emt 0:00:49]} 29. Kh2 {[%emt 0:00:25]} Qxh5 {[%emt 0:00:42]} 30. Re3 {[%emt 0:03:53]} Rf2+ {[%emt 0:02:51]} 31. Kg1 {[%emt 0:00:33]} Re2 {[%emt 0:00:19]} 32. Rxe2 {[%emt 0:01:23]} Qxe2 {[%emt 0:00:05]} 33. Bb3 {[%emt 0:01:03]} Qe3+ {[%emt 0:00:06]} 0-1